[Event "*** Titled Tuesday Blitz"]
[Site "Chess.com"]
[Date "2021.04.06"]
[Round "4"]
[White "mikolka1985"]
[Black "eduardoperalta"]
[Result "1-0"]
[WhiteElo "2662"]
[BlackElo "2496"]
[TimeControl "180+1"]
[EndTime "10:39:23 PDT"]
[Termination "mikolka1985 won on time"]

1. d4 {[%clk 0:03:00.9]} 1... Nf6 {[%clk 0:02:59.5]} 2. c4 {[%clk 0:03:00.5]}
2... g6 {[%clk 0:03:00]} 3. Nc3 {[%clk 0:02:59.8]} 3... c5 {[%clk 0:03:00.5]} 4.
d5 {[%clk 0:02:59.3]} 4... d6 {[%clk 0:03:01]} 5. e4 {[%clk 0:02:59.3]} 5... Bg7
{[%clk 0:03:01.9]} 6. h3 {[%clk 0:02:59.4]} 6... O-O {[%clk 0:03:02.4]} 7. Nf3
{[%clk 0:02:59.6]} 7... e6 {[%clk 0:03:00.1]} 8. Bd3 {[%clk 0:02:58.6]} 8...
exd5 {[%clk 0:02:58.9]} 9. exd5 {[%clk 0:02:58.1]} 9... Re8+ {[%clk 0:02:54.4]}
10. Be3 {[%clk 0:02:58.2]} 10... Rxe3+ {[%clk 0:02:46.1]} 11. fxe3 {[%clk
0:02:57.6]} 11... Qe7 {[%clk 0:02:44.4]} 12. O-O {[%clk 0:02:54.7]} 12... a6
{[%clk 0:02:37.6]} 13. a4 {[%clk 0:02:49.2]} 13... Nbd7 {[%clk 0:02:36.7]} 14.
Qd2 {[%clk 0:02:44.5]} 14... Nh5 {[%clk 0:02:32.3]} 15. g4 {[%clk 0:02:42.8]}
15... Ng3 {[%clk 0:02:06]} 16. Rf2 {[%clk 0:02:42.3]} 16... Ne5 {[%clk
0:02:02.3]} 17. Nxe5 {[%clk 0:02:40.8]} 17... Bxe5 {[%clk 0:02:01.7]} 18. Kg2
{[%clk 0:02:37]} 18... h5 {[%clk 0:02:00.3]} 19. Rf3 {[%clk 0:02:14.2]} 19...
Qh4 {[%clk 0:01:39.2]} 20. Qf2 {[%clk 0:02:09.4]} 20... hxg4 {[%clk 0:01:35]}
21. Rxg3 {[%clk 0:02:09.1]} 21... gxh3+ {[%clk 0:01:34.2]} 22. Kh2 {[%clk
0:02:08.7]} 22... Bd7 {[%clk 0:01:11.9]} 23. Ne2 {[%clk 0:02:06.5]} 23... g5
{[%clk 0:00:52.5]} 24. Rf1 {[%clk 0:01:53.3]} 24... Rf8 {[%clk 0:00:47.8]} 25.
Bf5 {[%clk 0:01:49.1]} 25... Bxa4 {[%clk 0:00:44.6]} 26. Nf4 {[%clk 0:01:43]}
26... Qh6 {[%clk 0:00:17.5]} 27. Rfg1 {[%clk 0:01:40.4]} 27... f6 {[%clk
0:00:12.4]} 28. Rxh3 {[%clk 0:01:31]} 28... Qg7 {[%clk 0:00:08.6]} 29. Be6+
{[%clk 0:01:30.5]} 29... Rf7 {[%clk 0:00:07.5]} 30. Kh1 {[%clk 0:01:30.5]} 30...
Bd7 {[%clk 0:00:03.5]} 31. Nh5 {[%clk 0:01:26.8]} 31... Qg6 {[%clk 0:00:03.1]}
32. Ng3 {[%clk 0:01:19]} 32... Bxe6 {[%clk 0:00:02.4]} 33. dxe6 {[%clk
0:01:18.4]} 33... Re7 {[%clk 0:00:02.3]} 34. Nf5 {[%clk 0:01:16.7]} 34... Rxe6
{[%clk 0:00:02.7]} 35. Rh6 {[%clk 0:01:15.1]} 35... Qe8 {[%clk 0:00:02.4]} 36.
Qf3 {[%clk 0:01:12.3]} 36... Qc6 {[%clk 0:00:01.7]} 37. e4 {[%clk 0:01:04.9]}
37... Re8 {[%clk 0:00:01.3]} 38. Ne3 {[%clk 0:00:56.4]} 1-0

[Event "*** Titled Tuesday Blitz"]
[Site "Chess.com"]
[Date "2021.04.06"]
[Round "4"]
[White "A-Fier"]
[Black "BrandonJacobson"]
[Result "1-0"]
[WhiteElo "2725"]
[BlackElo "2875"]
[TimeControl "180+1"]
[EndTime "10:39:26 PDT"]
[Termination "A-Fier won by resignation"]

1. d4 {[%clk 0:03:00.9]} 1... d5 {[%clk 0:02:59.6]} 2. c4 {[%clk 0:02:58.9]}
2... e6 {[%clk 0:02:59.8]} 3. Nc3 {[%clk 0:02:58.8]} 3... h6 {[%clk 0:02:59.8]}
4. e4 {[%clk 0:02:55.7]} 4... dxe4 {[%clk 0:02:59.2]} 5. Nxe4 {[%clk 0:02:56.3]}
5... Bb4+ {[%clk 0:02:58.5]} 6. Nc3 {[%clk 0:02:56]} 6... c5 {[%clk 0:02:57.2]}
7. Nf3 {[%clk 0:02:55.5]} 7... Nf6 {[%clk 0:02:52.5]} 8. a3 {[%clk 0:02:55.6]}
8... Bxc3+ {[%clk 0:02:43.6]} 9. bxc3 {[%clk 0:02:55.5]} 9... O-O {[%clk
0:02:44.3]} 10. Be2 {[%clk 0:02:51.2]} 10... b6 {[%clk 0:02:44.3]} 11. O-O
{[%clk 0:02:51]} 11... Bb7 {[%clk 0:02:43.2]} 12. a4 {[%clk 0:02:51.4]} 12...
cxd4 {[%clk 0:02:38.5]} 13. cxd4 {[%clk 0:02:51.4]} 13... Nc6 {[%clk 0:02:39.2]}
14. Bb2 {[%clk 0:02:49.4]} 14... Rc8 {[%clk 0:02:38]} 15. Rc1 {[%clk 0:02:49.1]}
15... Na5 {[%clk 0:02:35.4]} 16. Ne5 {[%clk 0:02:45]} 16... Nd7 {[%clk
0:02:28.4]} 17. Nf3 {[%clk 0:02:32.9]} 17... Qe7 {[%clk 0:02:01.5]} 18. Qd3
{[%clk 0:02:27.7]} 18... Rfd8 {[%clk 0:01:50.7]} 19. Ba3 {[%clk 0:02:23]} 19...
Qf6 {[%clk 0:01:48.1]} 20. Qe3 {[%clk 0:02:23.4]} 20... Ba6 {[%clk 0:01:46.4]}
21. c5 {[%clk 0:02:12]} 21... Bxe2 {[%clk 0:01:40.8]} 22. Qxe2 {[%clk
0:02:12.9]} 22... bxc5 {[%clk 0:01:40.6]} 23. Bxc5 {[%clk 0:02:06.2]} 23... Nb3
{[%clk 0:01:34.3]} 24. Rc4 {[%clk 0:01:57.6]} 24... Ndxc5 {[%clk 0:01:24.6]} 25.
dxc5 {[%clk 0:01:56.8]} 25... Rxc5 {[%clk 0:01:25.3]} 26. Rxc5 {[%clk
0:01:56.8]} 26... Nxc5 {[%clk 0:01:26.1]} 27. Qb5 {[%clk 0:01:54.2]} 27... Qc3
{[%clk 0:01:20.7]} 28. h3 {[%clk 0:01:52.9]} 28... Ne4 {[%clk 0:01:08.6]} 29.
Qb7 {[%clk 0:01:50]} 29... Nc5 {[%clk 0:00:39.5]} 30. Qxa7 {[%clk 0:01:47.5]}
30... Nd3 {[%clk 0:00:36.4]} 31. Qb6 {[%clk 0:01:43.7]} 31... Ra8 {[%clk
0:00:35.1]} 32. Qb5 {[%clk 0:01:37.2]} 32... Nc5 {[%clk 0:00:34.9]} 33. Qc6
{[%clk 0:01:26.5]} 33... Rf8 {[%clk 0:00:23]} 34. Rd1 {[%clk 0:01:24.1]} 34...
Qc2 {[%clk 0:00:20.2]} 35. Rd4 {[%clk 0:01:19.6]} 35... Qb1+ {[%clk 0:00:17.2]}
36. Kh2 {[%clk 0:01:19.4]} 36... Nb3 {[%clk 0:00:16.2]} 37. Rb4 {[%clk
0:01:15.4]} 37... Qa2 {[%clk 0:00:16.1]} 38. Qc4 {[%clk 0:01:14.3]} 38... Nc1
{[%clk 0:00:16.5]} 39. Qxc1 {[%clk 0:01:14.1]} 39... Qxf2 {[%clk 0:00:15.7]} 40.
Qb2 {[%clk 0:01:11.6]} 40... Qa7 {[%clk 0:00:13.3]} 41. Qd4 {[%clk 0:01:09.9]}
41... Qc7+ {[%clk 0:00:13]} 42. Qe5 {[%clk 0:01:09.5]} 42... Qe7 {[%clk
0:00:12.4]} 43. Rb8 {[%clk 0:01:06]} 43... Rxb8 {[%clk 0:00:11.4]} 44. Qxb8+
{[%clk 0:01:05.4]} 44... Kh7 {[%clk 0:00:12.3]} 45. a5 {[%clk 0:01:05.7]} 45...
Qa3 {[%clk 0:00:12.5]} 46. Qb6 {[%clk 0:01:04.6]} 46... Qa4 {[%clk 0:00:12.9]}
47. a6 {[%clk 0:01:01.9]} 47... Qf4+ {[%clk 0:00:13.5]} 48. Kh1 {[%clk
0:01:02.5]} 48... Qc1+ {[%clk 0:00:14.1]} 49. Ng1 {[%clk 0:01:01]} 1-0

[Event "*** Titled Tuesday Blitz"]
[Site "Chess.com"]
[Date "2021.04.06"]
[Round "4"]
[White "2nd_life"]
[Black "secretsuperstar7"]
[Result "1-0"]
[WhiteElo "2415"]
[BlackElo "2198"]
[TimeControl "180+1"]
[EndTime "10:39:28 PDT"]
[Termination "2nd_life won on time"]

1. e4 {[%clk 0:03:00.9]} 1... c5 {[%clk 0:02:47.1]} 2. Nf3 {[%clk 0:02:59.3]}
2... d6 {[%clk 0:02:40.7]} 3. d4 {[%clk 0:02:58.5]} 3... cxd4 {[%clk 0:02:40.3]}
4. Nxd4 {[%clk 0:02:59.4]} 4... Nf6 {[%clk 0:02:40.4]} 5. Nc3 {[%clk 0:02:59.6]}
5... Nc6 {[%clk 0:02:39.2]} 6. f3 {[%clk 0:02:57.2]} 6... e5 {[%clk 0:02:28.1]}
7. Nb3 {[%clk 0:02:56.1]} 7... a5 {[%clk 0:02:08.2]} 8. Bb5 {[%clk 0:02:52.1]}
8... Be6 {[%clk 0:01:59.9]} 9. Bg5 {[%clk 0:02:47.7]} 9... Be7 {[%clk
0:01:57.1]} 10. Bxf6 {[%clk 0:02:24.6]} 10... Bxf6 {[%clk 0:01:55.5]} 11. Nd5
{[%clk 0:02:16]} 11... Bh4+ {[%clk 0:01:41.4]} 12. g3 {[%clk 0:02:14.5]} 12...
Bg5 {[%clk 0:01:39.5]} 13. h4 {[%clk 0:02:06.1]} 13... Be7 {[%clk 0:01:19]} 14.
a4 {[%clk 0:02:02.2]} 14... O-O {[%clk 0:01:11.7]} 15. Qd2 {[%clk 0:01:50.4]}
15... f5 {[%clk 0:01:02.9]} 16. O-O-O {[%clk 0:01:49.3]} 16... Rc8 {[%clk
0:00:45.9]} 17. Kb1 {[%clk 0:01:43.6]} 17... Kh8 {[%clk 0:00:17.5]} 18. Bxc6
{[%clk 0:01:20.5]} 18... Rxc6 {[%clk 0:00:11.9]} 19. Qxa5 {[%clk 0:01:12.2]}
19... Qe8 {[%clk 0:00:09]} 20. Qb4 {[%clk 0:01:07.1]} 20... Ra6 {[%clk
0:00:07.7]} 21. a5 {[%clk 0:01:03.5]} 21... Bxd5 {[%clk 0:00:06]} 22. Rxd5
{[%clk 0:01:02.9]} 22... fxe4 {[%clk 0:00:06.1]} 23. fxe4 {[%clk 0:01:03]} 23...
Rf3 {[%clk 0:00:06]} 24. Qxb7 {[%clk 0:01:02.2]} 24... Ra8 {[%clk 0:00:05]} 25.
a6 {[%clk 0:00:55]} 25... Rb8 {[%clk 0:00:03.4]} 26. Qc7 {[%clk 0:00:48.6]}
26... Rc8 {[%clk 0:00:03]} 27. Qb6 {[%clk 0:00:40.3]} 27... Qc6 {[%clk
0:00:01.7]} 28. Qxc6 {[%clk 0:00:36.8]} 28... Rxc6 {[%clk 0:00:02.6]} 29. a7
{[%clk 0:00:37.2]} 29... Ra6 {[%clk 0:00:02.5]} 30. Ra5 {[%clk 0:00:37.4]} 30...
Rxa5 {[%clk 0:00:02.8]} 31. Nxa5 {[%clk 0:00:37.2]} 31... Rf8 {[%clk 0:00:03.7]}
32. Nc6 {[%clk 0:00:35.6]} 32... Bf6 {[%clk 0:00:02.5]} 33. Nb8 {[%clk
0:00:35.4]} 1-0

[Event "*** Titled Tuesday Blitz"]
[Site "Chess.com"]
[Date "2021.04.06"]
[Round "4"]
[White "googlegoom"]
[Black "campomania3"]
[Result "1-0"]
[WhiteElo "2438"]
[BlackElo "2236"]
[TimeControl "180+1"]
[EndTime "10:39:29 PDT"]
[Termination "googlegoom won on time"]

1. Nf3 {[%clk 0:03:00.9]} 1... d5 {[%clk 0:02:59.5]} 2. b3 {[%clk 0:03:00.5]}
2... Nf6 {[%clk 0:02:59.7]} 3. Bb2 {[%clk 0:03:00.6]} 3... Bf5 {[%clk
0:03:00.3]} 4. e3 {[%clk 0:03:00.9]} 4... e6 {[%clk 0:03:00.5]} 5. Be2 {[%clk
0:03:01.3]} 5... h6 {[%clk 0:03:00.1]} 6. O-O {[%clk 0:03:01]} 6... Be7 {[%clk
0:03:00.2]} 7. d4 {[%clk 0:03:00.2]} 7... O-O {[%clk 0:02:59.9]} 8. Nbd2 {[%clk
0:02:49.9]} 8... c5 {[%clk 0:02:59.8]} 9. c4 {[%clk 0:02:49.1]} 9... Nc6 {[%clk
0:02:59.1]} 10. a3 {[%clk 0:02:46.5]} 10... a6 {[%clk 0:02:58.5]} 11. dxc5
{[%clk 0:02:46.1]} 11... Bxc5 {[%clk 0:02:57.6]} 12. b4 {[%clk 0:02:46.6]} 12...
Ba7 {[%clk 0:02:53.8]} 13. c5 {[%clk 0:02:45.9]} 13... Bb8 {[%clk 0:02:51.3]}
14. Qb3 {[%clk 0:02:39.2]} 14... Re8 {[%clk 0:02:42.1]} 15. Rfd1 {[%clk
0:02:38.1]} 15... Qc7 {[%clk 0:02:39.4]} 16. Rac1 {[%clk 0:02:30.2]} 16... Ne4
{[%clk 0:02:32]} 17. Nf1 {[%clk 0:02:25.4]} 17... g5 {[%clk 0:01:49.3]} 18. a4
{[%clk 0:02:17.1]} 18... a5 {[%clk 0:01:41.6]} 19. b5 {[%clk 0:02:15.8]} 19...
Nb4 {[%clk 0:01:41.5]} 20. c6 {[%clk 0:02:08]} 20... bxc6 {[%clk 0:01:33.9]} 21.
bxc6 {[%clk 0:02:08.9]} 21... Ba7 {[%clk 0:01:18.9]} 22. Ng3 {[%clk 0:01:57.8]}
22... Bg6 {[%clk 0:01:09.2]} 23. Nxe4 {[%clk 0:01:54.5]} 23... Bxe4 {[%clk
0:00:52.2]} 24. Qc3 {[%clk 0:01:54.2]} 24... e5 {[%clk 0:00:46.2]} 25. Nxe5
{[%clk 0:01:50.3]} 25... Na2 {[%clk 0:00:21]} 26. Qb3 {[%clk 0:00:53.7]} 26...
Nxc1 {[%clk 0:00:20.7]} 27. Rxc1 {[%clk 0:00:54.2]} 27... Rxe5 {[%clk
0:00:20.5]} 28. Bxe5 {[%clk 0:00:54.9]} 28... Qxe5 {[%clk 0:00:19.9]} 29. Qb7
{[%clk 0:00:54.3]} 29... Qb8 {[%clk 0:00:17.9]} 30. Qe7 {[%clk 0:00:54]} 30...
Qe8 {[%clk 0:00:13.5]} 31. Qf6 {[%clk 0:00:53.4]} 31... Kh7 {[%clk 0:00:11.6]}
32. Bh5 {[%clk 0:00:50.3]} 32... Bg6 {[%clk 0:00:10.4]} 33. Bf3 {[%clk
0:00:49.3]} 33... Rd8 {[%clk 0:00:08.5]} 34. c7 {[%clk 0:00:48.8]} 34... Rc8
{[%clk 0:00:08.2]} 35. Bxd5 {[%clk 0:00:49.1]} 35... Bxe3 {[%clk 0:00:06.9]} 36.
Re1 {[%clk 0:00:45.2]} 36... Bxf2+ {[%clk 0:00:02.2]} 37. Qxf2 {[%clk
0:00:44.4]} 1-0

[Event "*** Titled Tuesday Blitz"]
[Site "Chess.com"]
[Date "2021.04.06"]
[Round "4"]
[White "olksuna"]
[Black "Eloist"]
[Result "1-0"]
[WhiteElo "2667"]
[BlackElo "2350"]
[TimeControl "180+1"]
[EndTime "10:39:30 PDT"]
[Termination "olksuna won by resignation"]

1. e4 {[%clk 0:03:00.9]} 1... e6 {[%clk 0:03:00.3]} 2. d4 {[%clk 0:03:00.2]}
2... d5 {[%clk 0:03:00.5]} 3. Nc3 {[%clk 0:03:00.8]} 3... Nf6 {[%clk 0:03:00.7]}
4. e5 {[%clk 0:03:00]} 4... Nfd7 {[%clk 0:03:00.5]} 5. f4 {[%clk 0:03:00.4]}
5... c5 {[%clk 0:03:01.1]} 6. Nf3 {[%clk 0:03:01]} 6... Nc6 {[%clk 0:03:01.6]}
7. Be3 {[%clk 0:03:01.5]} 7... a6 {[%clk 0:03:01.9]} 8. Qd2 {[%clk 0:02:55.7]}
8... b5 {[%clk 0:03:01.9]} 9. Be2 {[%clk 0:02:53.3]} 9... Qb6 {[%clk 0:03:01.6]}
10. Nd1 {[%clk 0:02:48]} 10... b4 {[%clk 0:03:00.9]} 11. dxc5 {[%clk 0:02:39.6]}
11... Bxc5 {[%clk 0:02:59.6]} 12. O-O {[%clk 0:02:29.2]} 12... a5 {[%clk
0:02:54.6]} 13. Kh1 {[%clk 0:02:23.7]} 13... Ba6 {[%clk 0:02:50.2]} 14. Bxa6
{[%clk 0:02:22.5]} 14... Qxa6 {[%clk 0:02:49.9]} 15. Nf2 {[%clk 0:02:16.9]}
15... O-O {[%clk 0:02:38.3]} 16. Nd3 {[%clk 0:02:14]} 16... Bxe3 {[%clk
0:02:37.1]} 17. Qxe3 {[%clk 0:02:14.9]} 17... Qc4 {[%clk 0:02:25.2]} 18. Rf2
{[%clk 0:01:47.6]} 18... Qe4 {[%clk 0:02:14.5]} 19. Qd2 {[%clk 0:01:44.9]} 19...
Rac8 {[%clk 0:02:03.1]} 20. Re1 {[%clk 0:01:38.6]} 20... Qf5 {[%clk 0:02:02]}
21. h3 {[%clk 0:01:31.1]} 21... h5 {[%clk 0:01:42.6]} 22. Nh4 {[%clk 0:01:29.5]}
22... Qh7 {[%clk 0:01:40]} 23. f5 {[%clk 0:01:30.1]} 23... Nd4 {[%clk
0:01:29.3]} 24. Qg5 {[%clk 0:01:02.6]} 24... Nxe5 {[%clk 0:01:01.9]} 25. Nxe5
{[%clk 0:00:35.2]} 25... f6 {[%clk 0:01:00.6]} 26. Qg3 {[%clk 0:00:30.5]} 26...
fxe5 {[%clk 0:00:59.6]} 27. Qxe5 {[%clk 0:00:30.5]} 27... Rc4 {[%clk 0:00:24.4]}
28. b3 {[%clk 0:00:30.3]} 28... Nxc2 {[%clk 0:00:12.2]} 29. Qxe6+ {[%clk
0:00:29]} 29... Kh8 {[%clk 0:00:12.2]} 30. Ng6+ {[%clk 0:00:26.9]} 30... Qxg6
{[%clk 0:00:11.6]} 31. fxg6 {[%clk 0:00:26.9]} 31... Rxf2 {[%clk 0:00:11.1]} 32.
Qe8+ {[%clk 0:00:26.3]} 1-0

[Event "*** Titled Tuesday Blitz"]
[Site "Chess.com"]
[Date "2021.04.06"]
[Round "4"]
[White "FMchesstrainer"]
[Black "mr65"]
[Result "1-0"]
[WhiteElo "2404"]
[BlackElo "2130"]
[TimeControl "180+1"]
[EndTime "10:39:30 PDT"]
[Termination "FMchesstrainer won by resignation"]

1. d4 {[%clk 0:02:33.4]} 1... Nf6 {[%clk 0:02:59.6]} 2. Bg5 {[%clk 0:02:34]}
2... g6 {[%clk 0:02:59.4]} 3. Bxf6 {[%clk 0:02:34.2]} 3... exf6 {[%clk 0:02:59]}
4. g3 {[%clk 0:02:35.1]} 4... Bg7 {[%clk 0:02:59.1]} 5. Bg2 {[%clk 0:02:35.9]}
5... O-O {[%clk 0:02:59]} 6. e3 {[%clk 0:02:36.6]} 6... f5 {[%clk 0:02:59]} 7.
Nd2 {[%clk 0:02:37.2]} 7... a5 {[%clk 0:02:56.7]} 8. Ne2 {[%clk 0:02:35.9]} 8...
a4 {[%clk 0:02:56.6]} 9. c4 {[%clk 0:02:31.7]} 9... a3 {[%clk 0:02:55.8]} 10. b4
{[%clk 0:02:30.2]} 10... Nc6 {[%clk 0:02:48]} 11. Rb1 {[%clk 0:02:29.4]} 11...
d6 {[%clk 0:02:38.9]} 12. O-O {[%clk 0:02:28.6]} 12... Ra7 {[%clk 0:02:37.3]}
13. b5 {[%clk 0:02:24.2]} 13... Ne7 {[%clk 0:02:36.2]} 14. Qc2 {[%clk 0:02:17]}
14... b6 {[%clk 0:02:35.7]} 15. c5 {[%clk 0:02:15.4]} 15... dxc5 {[%clk
0:02:34.4]} 16. dxc5 {[%clk 0:02:15.7]} 16... Bb7 {[%clk 0:02:33.2]} 17. c6
{[%clk 0:02:13.1]} 17... Bc8 {[%clk 0:02:33]} 18. Rfd1 {[%clk 0:02:12.3]} 18...
Qe8 {[%clk 0:02:27.4]} 19. Nf4 {[%clk 0:02:05.8]} 19... Be6 {[%clk 0:02:25.2]}
20. Nb3 {[%clk 0:02:03.4]} 20... Ra8 {[%clk 0:02:16]} 21. Nd4 {[%clk 0:02:01]}
21... Bxd4 {[%clk 0:01:58.4]} 22. Rxd4 {[%clk 0:02:00]} 22... Rd8 {[%clk
0:01:57.4]} 23. Rbd1 {[%clk 0:01:59.6]} 23... Rxd4 {[%clk 0:01:56.9]} 24. Rxd4
{[%clk 0:02:00.5]} 24... Nc8 {[%clk 0:01:56.7]} 25. Qd2 {[%clk 0:01:43.6]} 25...
Nd6 {[%clk 0:01:53.6]} 26. Rxd6 {[%clk 0:01:44]} 26... cxd6 {[%clk 0:01:53.1]}
27. Qxd6 {[%clk 0:01:44.9]} 27... Qd8 {[%clk 0:01:39.8]} 28. Qb4 {[%clk
0:01:23.4]} 28... Qd1+ {[%clk 0:01:34.5]} 29. Bf1 {[%clk 0:01:23.6]} 29... Bxa2
{[%clk 0:01:29.7]} 30. Kg2 {[%clk 0:01:24.1]} 30... Rd8 {[%clk 0:01:20.6]} 31.
Qxa3 {[%clk 0:01:21.9]} 31... Bd5+ {[%clk 0:01:19.3]} 32. Nxd5 {[%clk
0:01:20.8]} 32... Qxd5+ {[%clk 0:01:18.9]} 33. Kh3 {[%clk 0:01:21]} 33... g5
{[%clk 0:01:06.6]} 34. Qe7 {[%clk 0:01:18.8]} 34... g4+ {[%clk 0:01:03.6]} 35.
Kh4 {[%clk 0:01:19.4]} 35... Rd6 {[%clk 0:00:56.3]} 36. Bc4 {[%clk 0:01:14.1]}
36... Rh6+ {[%clk 0:00:54]} 37. Kg5 {[%clk 0:01:13.8]} 37... Rg6+ {[%clk
0:00:52]} 38. Kh5 {[%clk 0:01:12.2]} 38... Qxc4 {[%clk 0:00:31.2]} 39. Qe8+
{[%clk 0:01:11.9]} 39... Kg7 {[%clk 0:00:30]} 40. Qe5+ {[%clk 0:01:11.8]} 40...
Rf6 {[%clk 0:00:27.6]} 41. c7 {[%clk 0:01:08.8]} 41... f4 {[%clk 0:00:20.6]} 42.
Kg5 {[%clk 0:01:05.6]} 42... Qc2 {[%clk 0:00:18.1]} 43. Qxf6+ {[%clk 0:01:04.9]}
43... Kg8 {[%clk 0:00:16.9]} 44. Qd8+ {[%clk 0:01:01.5]} 44... Kg7 {[%clk
0:00:16.9]} 45. c8=Q {[%clk 0:01:01.1]} 45... Qg6+ {[%clk 0:00:12.7]} 46. Kxf4
{[%clk 0:01:01.3]} 1-0

[Event "*** Titled Tuesday Blitz"]
[Site "Chess.com"]
[Date "2021.04.06"]
[Round "4"]
[White "SergeyShtyka"]
[Black "PawnEatingZombie"]
[Result "1-0"]
[WhiteElo "2396"]
[BlackElo "2199"]
[TimeControl "180+1"]
[EndTime "10:39:31 PDT"]
[Termination "SergeyShtyka won on time"]

1. e4 {[%clk 0:02:46.7]} 1... c6 {[%clk 0:02:59.5]} 2. Nf3 {[%clk 0:02:46.4]}
2... d5 {[%clk 0:02:59.7]} 3. Nc3 {[%clk 0:02:46.6]} 3... Bg4 {[%clk 0:02:59.6]}
4. h3 {[%clk 0:02:44.7]} 4... Bh5 {[%clk 0:02:59.8]} 5. g4 {[%clk 0:02:42.9]}
5... Bg6 {[%clk 0:02:59.5]} 6. exd5 {[%clk 0:02:39.6]} 6... cxd5 {[%clk
0:03:00.4]} 7. Bb5+ {[%clk 0:02:39.4]} 7... Nc6 {[%clk 0:03:00.8]} 8. Ne5 {[%clk
0:02:38.3]} 8... Rc8 {[%clk 0:03:00.8]} 9. d4 {[%clk 0:02:36.9]} 9... e6 {[%clk
0:03:01.2]} 10. h4 {[%clk 0:02:35.1]} 10... f6 {[%clk 0:03:01.1]} 11. Nxg6
{[%clk 0:02:28.8]} 11... hxg6 {[%clk 0:03:02]} 12. Qd3 {[%clk 0:02:28.9]} 12...
Kf7 {[%clk 0:03:01.5]} 13. h5 {[%clk 0:02:29]} 13... gxh5 {[%clk 0:03:01.5]} 14.
Rxh5 {[%clk 0:02:28.3]} 14... Rxh5 {[%clk 0:02:57.9]} 15. gxh5 {[%clk
0:02:29.2]} 15... Bb4 {[%clk 0:02:33.8]} 16. Bxc6 {[%clk 0:02:22.4]} 16... Rxc6
{[%clk 0:02:32.5]} 17. Bd2 {[%clk 0:02:21]} 17... Ne7 {[%clk 0:02:28.1]} 18.
O-O-O {[%clk 0:02:20.1]} 18... Bxc3 {[%clk 0:02:20.8]} 19. Bxc3 {[%clk
0:02:19.2]} 19... Nf5 {[%clk 0:02:21.1]} 20. a3 {[%clk 0:02:12.3]} 20... Qd6
{[%clk 0:02:04.7]} 21. Kb1 {[%clk 0:02:07.5]} 21... Rc8 {[%clk 0:02:02.7]} 22.
Qf3 {[%clk 0:02:03.2]} 22... Rh8 {[%clk 0:01:50.2]} 23. Rh1 {[%clk 0:02:01.5]}
23... Qb6 {[%clk 0:01:23.4]} 24. Qg4 {[%clk 0:01:58.5]} 24... Kf8 {[%clk
0:01:02.5]} 25. Bb4+ {[%clk 0:01:54]} 25... Kg8 {[%clk 0:00:57.9]} 26. Bc5
{[%clk 0:01:52.4]} 26... Qc7 {[%clk 0:00:54.5]} 27. Re1 {[%clk 0:01:44.2]} 27...
Qf7 {[%clk 0:00:47.1]} 28. Bxa7 {[%clk 0:01:39.5]} 28... Qxh5 {[%clk 0:00:27.3]}
29. Qxh5 {[%clk 0:01:35.3]} 29... Rxh5 {[%clk 0:00:28.2]} 30. Rxe6 {[%clk
0:01:35.1]} 30... Rh2 {[%clk 0:00:24.4]} 31. a4 {[%clk 0:01:21]} 31... Rxf2
{[%clk 0:00:23.4]} 32. a5 {[%clk 0:01:20.7]} 32... Kf7 {[%clk 0:00:23.7]} 33.
Rb6 {[%clk 0:01:18.4]} 33... g5 {[%clk 0:00:24.2]} 34. Rxb7+ {[%clk 0:01:17.4]}
34... Kg6 {[%clk 0:00:20.8]} 35. a6 {[%clk 0:01:16.3]} 35... g4 {[%clk
0:00:21.3]} 36. Bb8 {[%clk 0:01:15.5]} 36... Nxd4 {[%clk 0:00:16.2]} 37. a7
{[%clk 0:01:12.8]} 37... Rf1+ {[%clk 0:00:16.6]} 38. Ka2 {[%clk 0:01:12.3]}
38... Nxc2 {[%clk 0:00:17.2]} 39. Kb3 {[%clk 0:01:09.2]} 39... Ra1 {[%clk
0:00:12.6]} 40. Kxc2 {[%clk 0:01:07.8]} 40... Kg5 {[%clk 0:00:05.5]} 41. b4
{[%clk 0:01:06.8]} 41... f5 {[%clk 0:00:04.1]} 42. b5 {[%clk 0:01:05]} 42... f4
{[%clk 0:00:04]} 43. Rg7+ {[%clk 0:01:03.5]} 1-0